bitfinex-derivatives/quotes_SOLF0:USTF0_20250328
["timestamp","ask_amount","ask_price","bid_price","bid_amount"]
[1743124230452,46.44598321,137.4,137.37,7.33039697]
[1743124230760,46.44598321,137.4,137.37,0.04899697]
[1743124231360,7.2806,137.39,137.37,0.04899697]
[1743124232357,46.44608321,137.4,137.37,7.33049697]
[1743124232560,0.04923977,137.4,137.38,39.11664344]
[1743124232756,0.04923977,137.4,137.38,13.23664344]
[1743124233163,0.04923977,137.4,137.39,7.2805]
[1743124233559,0.04923977,137.4,137.37,25.92899697]
[1743124233758,0.04923977,137.4,137.37,33.21019697]
[1743124234151,0.04923977,137.4,137.37,25.92899697]
[1743124234353,0.04923977,137.4,137.38,7.2808]
[1743124234557,0.04923977,137.4,137.37,25.92899697]
[1743124234558,7.32933977,137.4,137.37,0.04899697]
[1743124235361,7.32933977,137.4,137.37,7.33019697]
[1743124235556,0.04923977,137.4,137.37,0.04899697]
[1743124237061,0.04923977,137.4,137.38,7.2811]
[1743124237764,0.04923977,137.4,137.37,7.33049697]
[1743124237967,0.04923977,137.4,137.37,0.04899697]
[1743124238161,0.04923977,137.4,137.38,7.2807]
[1743124238355,0.04923977,137.4,137.37,0.04899697]
[1743124238968,0.04923977,137.4,137.37,7.33009697]
[1743124239266,0.04923977,137.4,137.37,0.04899697]
[1743124239467,0.04923977,137.4,137.38,7.2806]
[1743124240671,0.04923977,137.4,137.39,7.2805]
[1743124241371,0.04923977,137.4,137.38,7.2808]
[1743124241964,0.04923977,137.4,137.37,20.56704041]
[1743124242159,0.04923977,137.4,137.37,7.33039697]
[1743124242575,20.56618321,137.4,137.37,0.04899697]
[1743124244672,7.2806,137.39,137.37,0.04899697]
[1743124245472,20.51774344,137.38,137.37,0.04899697]
[1743124246975,46.39774344,137.38,137.37,0.04899697]
[1743124247275,7.2825,137.36,137.32,13.23664344]
[1743124247477,20.51914344,137.36,137.32,20.52034344]
[1743124248068,20.51914344,137.36,137.33,7.2836]
[1743124248273,0.04743686,137.35,137.33,7.33742622]
[1743124249083,7.33013686,137.35,137.33,0.05382622]
[1743124249278,0.04743686,137.35,137.33,0.05382622]
[1743124249875,20.51984344,137.34,137.33,0.05382622]
[1743124252286,13.23664344,137.34,137.27,13.23664344]
[1743124252478,13.23664344,137.31,137.26,25.88]
[1743124252678,20.52164344,137.31,137.26,25.88]
[1743124252880,20.52164344,137.31,137.25,13.23664344]
[1743124253287,20.52164344,137.31,137.27,7.2866]
[1743124253490,0.05451466,137.29,137.27,0.04612058]
[1743124253683,13.2911581,137.29,137.27,0.04612058]
[1743124254590,46.4573581,137.29,137.27,0.04612058]
[1743124254884,39.1711581,137.29,137.27,0.04612058]
[1743124255293,7.2864,137.28,137.27,0.04612058]
[1743124255790,39.1711581,137.29,137.27,0.04612058]
[1743124256789,25.93451466,137.29,137.27,0.04612058]
[1743124256994,25.93451466,137.29,137.27,13.28276402]
[1743124256995,0.05451466,137.29,137.27,13.28276402]
[1743124257183,0.05451466,137.29,137.27,0.04612058]
[1743124257384,0.05451466,137.29,137.27,7.33282058]
[1743124257685,0.05451466,137.29,137.27,0.04612058]
[1743124258895,7.2864,137.28,137.27,0.04612058]
[1743124259394,25.95451466,137.29,137.27,0.04612058]
[1743124261993,25.95451466,137.29,137.28,7.2864]
[1743124262201,25.95451466,137.29,137.27,0.04612058]
[1743124262386,0.05451466,137.29,137.27,0.04612058]
[1743124262595,0.05451466,137.29,137.28,13.23664344]
[1743124263091,39.13664344,137.34,137.28,13.23664344]
[1743124263291,39.13664344,137.34,137.3,13.23664344]
[1743124264095,39.13664344,137.34,137.31,7.2844]
[1743124264295,0.05011331,137.33,137.31,0.05509745]
[1743124264494,0.05011331,137.33,137.32,13.23664344]
[1743124264697,0.05011331,137.33,137.32,20.52074344]
[1743124265795,39.13664344,137.38,137.36,7.2819]
[1743124266196,13.23664344,137.38,137.36,7.2819]
[1743124267099,13.28886576,137.38,137.36,7.33218873]
[1743124267298,0.05222232,137.38,137.37,7.2816]
[1743124267703,0.05222232,137.38,137.36,0.05028873]
[1743124272108,0.05222232,137.38,137.36,7.33238873]
[1743124272712,0.05222232,137.38,137.36,0.05028873]
[1743124273804,0.05222232,137.38,137.36,7.33228873]
[1743124274010,0.05222232,137.38,137.36,13.28693217]
[1743124274410,0.05222232,137.38,137.37,7.2816]
[1743124275715,275.39664344,137.45,137.36,13.28693217]
[1743124276016,13.23664344,137.45,137.41,13.23664344]
[1743124276212,25.88,137.46,137.41,13.23664344]
[1743124276519,25.88,137.46,137.42,7.2786]
[1743124277019,0.04639957,137.45,137.43,0.05425997]
[1743124277420,0.04639957,137.45,137.43,7.33265997]
[1743124277617,0.04639957,137.45,137.43,0.05425997]
[1743124278009,7.32379957,137.45,137.43,0.05425997]
[1743124278213,0.04639957,137.45,137.43,0.05425997]
[1743124278615,0.04639957,137.45,137.43,13.29090341]
[1743124279417,0.04639957,137.45,137.43,39.17090341]
[1743124280219,0.04639957,137.45,137.44,7.2779]
[1743124285829,7.2749,137.5,137.47,7.276]
[1743124286128,7.2749,137.5,137.48,13.23664344]
[1743124286732,1.912,137.55,137.48,20.51234344]
[1743124286733,7.2744,137.51,137.48,20.51234344]
[1743124287033,0.05553181,137.51,137.48,13.2902419]
[1743124287326,0.05553181,137.51,137.5,13.23664344]
[1743124289532,0.05553181,137.51,137.48,0.05359846]
[1743124289925,7.2752,137.49,137.48,0.05359846]
[1743124292622,0.05553181,137.51,137.48,0.05359846]
[1743124294337,7.2752,137.49,137.48,0.05359846]
[1743124295937,33.1348,137.5,137.48,0.05359846]
[1743124296126,25.86,137.5,137.48,0.05359846]
[1743124296939,7.2752,137.49,137.48,0.05359846]
[1743124301334,33.1348,137.5,137.48,0.05359846]
[1743124301734,25.86,137.5,137.48,0.05359846]
[1743124302040,7.2752,137.49,137.48,0.05359846]
[1743124307847,33.1349,137.5,137.48,0.05359846]
[1743124308053,25.86,137.5,137.48,0.05359846]
[1743124308251,0.05553181,137.51,137.48,0.05359846]
[1743124308652,7.32993181,137.51,137.48,7.32909846]
[1743124308855,7.32993181,137.51,137.48,0.05359846]
[1743124308856,0.05553181,137.51,137.48,0.05359846]
[1743124309048,0.05553181,137.51,137.5,7.2747]
[1743124309553,0.05553181,137.51,137.48,0.05359846]
[1743124309750,7.32983181,137.51,137.48,7.32909846]
[1743124310153,7.32983181,137.51,137.48,0.05359846]
[1743124310353,0.05553181,137.51,137.49,7.2752]
[1743124311657,7.32973181,137.51,137.48,7.32909846]
[1743124313055,7.32973181,137.51,137.48,20.62542431]
[1743124314459,7.32973181,137.51,137.49,7.2751]
[1743124315950,0.05553181,137.51,137.49,7.2751]
[1743124316154,0.05553181,137.51,137.5,7.2747]
[1743124316349,0.05553181,137.51,137.48,13.34992431]
[1743124316859,0.05553181,137.51,137.49,7.275]
[1743124317659,0.05553181,137.51,137.5,7.2747]
[1743124318255,7.32983181,137.51,137.49,7.275]
[1743124319865,0.05553181,137.51,137.5,7.2747]
[1743124320466,0.05553181,137.51,137.49,7.275]
[1743124321765,7.32983181,137.51,137.48,20.62542431]
[1743124324067,7.2752,137.49,137.48,0.05359846]
[1743124324770,20.57152585,137.49,137.48,0.05359846]
[1743124325360,7.2782,137.44,137.42,13.29632585]
[1743124325557,13.29632585,137.46,137.41,10.13063489]
[1743124325770,39.15632585,137.46,137.41,10.13063489]
[1743124325975,13.29632585,137.44,137.41,10.13063489]
[1743124326269,7.2789,137.42,137.41,10.13063489]
[1743124326467,7.2789,137.42,137.41,10.18352887]
[1743124328972,7.2789,137.42,137.41,0.05289398]
[1743124329769,33.1386,137.43,137.41,0.05289398]
[1743124331969,7.2789,137.42,137.41,0.05289398]
[1743124333572,20.57522585,137.42,137.41,0.05289398]
[1743124333780,20.57522585,137.42,137.35,39.15632585]
[1743124333781,7.2808,137.39,137.35,39.15632585]
[1743124334975,0.05080387,137.38,137.36,0.05188936]
[1743124335879,0.05080387,137.38,137.37,7.2816]
[1743124338375,0.05080387,137.38,137.37,20.57792585]
[1743124342092,0.05080387,137.38,137.37,7.2816]
[1743124343987,0.05080387,137.38,137.36,0.05188936]
[1743124344592,13.34712972,137.38,137.36,0.05188936]
[1743124349200,0.05080387,137.38,137.36,0.05188936]
[1743124349797,13.29632585,137.37,137.36,0.05188936]
[1743124349998,39.17632585,137.37,137.36,0.05188936]
[1743124350300,46.45792585,137.37,137.36,0.05188936]
[1743124352905,7.2835,137.34,137.3,13.29632585]
[1743124353108,46.45982585,137.34,137.28,13.29632585]
[1743124353300,39.17632585,137.34,137.28,13.29632585]
[1743124353607,39.17632585,137.34,137.31,7.2843]
[1743124354106,39.23187504,137.34,137.31,7.33485598]
[1743124356205,46.51507504,137.34,137.31,7.33485598]
[1743124360606,46.51507504,137.34,137.31,0.05055598]
[1743124364815,7.2841,137.33,137.31,0.05055598]
[1743124366413,7.2842,137.32,137.31,0.05055598]
[1743124367016,7.2839,137.33,137.31,0.05055598]
[1743124370716,46.51527504,137.34,137.31,0.05055598]
[1743124374112,39.23187504,137.34,137.31,0.05055598]
[1743124374316,25.93554919,137.34,137.31,0.05055598]
[1743124374517,0.05554919,137.34,137.32,13.29632585]
[1743124374713,0.05554919,137.34,137.33,7.2837]
[1743124375518,0.05554919,137.34,137.32,20.58032585]
[1743124375917,39.17632585,137.33,137.31,0.05055598]
[1743124376619,46.46022585,137.33,137.31,0.05055598]
[1743124377317,39.17632585,137.33,137.31,0.05055598]
[1743124378721,46.46002585,137.33,137.31,0.05055598]
[1743124380721,7.2842,137.32,137.31,0.05055598]
[1743124382617,46.46022585,137.33,137.31,0.05055598]
[1743124382822,25.88,137.33,137.31,7.33505598]
[1743124383222,25.88,137.33,137.32,7.2842]
[1743124383517,0.05554919,137.34,137.31,13.34688183]
[1743124384925,0.05554919,137.34,137.32,7.2842]
[1743124386119,0.05554919,137.34,137.33,7.2837]
[1743124386826,0.05554919,137.34,137.33,20.58002585]
[1743124388032,13.29632585,137.4,137.33,13.29632585]
[1743124388331,25.88,137.41,137.37,13.29632585]
[1743124388628,53.60628086,137.42,137.37,13.29632585]
[1743124389017,53.60628086,137.42,137.39,7.2803]
[1743124389332,0.05115841,137.41,137.39,7.2803]
[1743124390624,13.29632585,137.4,137.38,0.05307954]
[1743124391022,25.88,137.39,137.38,0.05307954]
[1743124391223,33.1605,137.39,137.38,0.05307954]
[1743124393832,13.29632585,137.37,137.32,15.30102585]
[1743124394834,0.04901289,137.36,137.34,7.2832]
[1743124395035,0.04901289,137.36,137.33,0.05566648]
[1743124396026,0.04901289,137.36,137.34,7.2832]
[1743124398335,0.04901289,137.36,137.35,7.2827]
[1743124398831,0.04901289,137.36,137.34,7.283]
[1743124399936,0.04901289,137.36,137.33,0.05566648]
[1743124400140,0.04901289,137.36,137.33,7.33916648]
[1743124401338,13.29632585,137.35,137.33,0.05566648]
[1743124401847,13.29632585,137.35,137.33,7.33936648]
[1743124402244,13.29632585,137.35,137.33,0.05566648]
[1743124402939,13.29632585,137.35,137.33,7.33936648]
[1743124403744,13.29632585,137.35,137.33,0.05566648]
[1743124404640,25.92901289,137.36,137.33,0.05566648]
[1743124405341,25.92901289,137.36,137.34,7.2829]
[1743124407144,25.92901289,137.36,137.33,7.33916648]
[1743124407847,25.92901289,137.36,137.34,7.2832]
[1743124410449,25.92901289,137.36,137.33,7.33916648]
[1743124415751,25.92901289,137.36,137.34,7.2831]
[1743124418847,25.92901289,137.36,137.35,7.2827]
[1743124419043,0.04901289,137.36,137.35,20.57902585]
[1743124419252,13.29632585,137.4,137.35,13.29632585]
[1743124419454,13.29632585,137.4,137.35,39.17632585]
[1743124419648,13.29632585,137.4,137.39,7.2805]
[1743124420155,25.88,137.41,137.39,7.2805]
[1743124420349,25.92879634,137.41,137.39,7.2805]
[1743124420660,25.92879634,137.41,137.38,7.33121581]
[1743124420848,33.20829634,137.41,137.38,7.33121581]
[1743124422354,33.20829634,137.41,137.38,0.05031581]
[1743124423752,33.20829634,137.41,137.38,7.33131581]
[1743124424147,25.92879634,137.41,137.38,7.33131581]
[1743124425055,13.29632585,137.4,137.38,0.05031581]
[1743124425653,0.04879634,137.41,137.4,7.28]
[1743124425859,13.29632585,137.46,137.39,13.29632585]
[1743124426153,13.29632585,137.47,137.41,13.29632585]
[1743124426357,13.29632585,137.43,137.38,25.88]
[1743124426549,13.29632585,137.43,137.37,13.29632585]
[1743124426855,13.29632585,137.41,137.35,39.17632585]
[1743124427056,13.29632585,137.41,137.39,0.05308336]
[1743124427057,39.22334542,137.41,137.39,0.05308336]
[1743124428145,46.50324542,137.41,137.39,0.05308336]
[1743124429459,7.28,137.4,137.39,0.05308336]
[1743124435661,7.28,137.4,137.39,8.336e-05]
[1743124435855,39.22334542,137.41,137.3,2.0372]
[1743124436056,13.29632585,137.36,137.3,15.33352585]
[1743124436363,39.15632585,137.36,137.3,15.33352585]
[1743124436554,39.15632585,137.36,137.3,22.61852585]
[1743124436749,39.15632585,137.36,137.3,15.33352585]
[1743124436955,0.0477757,137.34,137.32,0.04981157]
[1743124437554,7.2841,137.33,137.32,0.04981157]
[1743124439566,7.2841,137.33,137.32,0.04981157]
[1743124444173,0.0477757,137.34,137.32,0.04981157]
[1743124446376,7.3312757,137.34,137.32,0.04981157]
[1743124447679,0.0477757,137.34,137.32,0.04981157]
[1743124448178,0.0477757,137.34,137.33,7.2837]
[1743124450074,0.0477757,137.34,137.32,20.63013742]
[1743124451084,0.0477757,137.34,137.32,0.04981157]
[1743124451886,7.2837,137.33,137.32,0.04981157]
[1743124455083,7.3311757,137.34,137.32,0.04981157]
[1743124455686,0.0477757,137.34,137.32,0.04981157]
[1743124456185,0.0477757,137.34,137.33,7.2837]
[1743124456885,7.3311757,137.34,137.32,0.04981157]
[1743124457083,0.0477757,137.34,137.32,0.04981157]
[1743124457784,7.2837,137.33,137.32,0.04981157]
[1743124463292,0.0477757,137.34,137.32,0.04981157]
[1743124463792,0.0477757,137.34,137.33,7.2837]
[1743124465194,0.0477757,137.34,137.32,0.04981157]
[1743124465796,7.3312757,137.34,137.32,0.04981157]
[1743124466794,7.3312757,137.34,137.32,7.33401157]
[1743124467695,7.3312757,137.34,137.32,0.04981157]
[1743124468199,0.0477757,137.34,137.32,0.04981157]
[1743124469397,0.0477757,137.34,137.32,7.33381157]
[1743124470799,0.0477757,137.34,137.33,7.2837]
[1743124472198,0.0477757,137.34,137.32,0.04981157]
[1743124472502,7.3312757,137.34,137.32,0.04981157]
[1743124473201,0.0477757,137.34,137.32,0.04981157]
[1743124473902,0.0477757,137.34,137.33,7.2837]
[1743124476498,0.0477757,137.34,137.33,20.58002585]
[1743124476697,13.29632585,137.4,137.38,7.2811]
[1743124477804,13.34391868,137.4,137.38,7.33521432]
[1743124478800,13.34391868,137.4,137.39,7.2805]
[1743124479190,7.2805,137.39,137.38,0.05411432]
[1743124479504,13.34391868,137.4,137.3,13.29632585]
[1743124479705,13.29632585,137.36,137.3,13.29632585]
[1743124479895,7.2831,137.35,137.3,13.29632585]
[1743124480592,0.05272183,137.34,137.32,7.2842]
[1743124481006,0.05272183,137.34,137.31,0.05534516]
[1743124481207,0.05272183,137.34,137.33,7.2837]
[1743124490609,0.05272183,137.34,137.31,7.33984516]
[1743124491414,7.33622183,137.34,137.31,7.33984516]
[1743124493517,0.05272183,137.34,137.31,0.05534516]
[1743124494317,0.05272183,137.34,137.31,7.33964516]
[1743124494611,13.34904768,137.34,137.31,7.33964516]
[1743124494810,13.34904768,137.34,137.31,0.05534516]
[1743124495810,20.63234768,137.34,137.32,7.2842]
[1743124496210,13.34904768,137.34,137.32,7.2842]
[1743124497216,20.63224768,137.34,137.32,7.2842]
[1743124497715,20.63224768,137.34,137.31,7.33984516]
[1743124498815,13.34904768,137.34,137.32,7.284]
[1743124499212,13.34904768,137.34,137.31,0.05534516]
[1743124499414,0.05272183,137.34,137.33,7.2837]
[1743124500717,0.05272183,137.34,137.32,7.284]
[1743124501921,0.05272183,137.34,137.31,0.05534516]
[1743124502122,13.34904768,137.34,137.31,0.05534516]
[1743124502916,7.2837,137.33,137.31,0.05534516]
[1743124503825,20.58052585,137.32,137.31,0.05534516]
[1743124505317,7.2868,137.28,137.26,13.29632585]
[1743124505519,39.15632585,137.3,137.24,39.15632585]
[1743124505723,13.29632585,137.28,137.24,13.29632585]
[1743124506021,39.15632585,137.28,137.23,7.2888]
[1743124506221,39.15632585,137.28,137.22,39.15632585]
[1743124506422,7.2882,137.25,137.22,20.58572585]
[1743124506724,0.05164376,137.26,137.24,0.04858682]
[1743124507110,0.05164376,137.26,137.24,7.33698682]
[1743124507318,0.05164376,137.26,137.24,0.04858682]
[1743124507917,7.33954376,137.26,137.24,0.04858682]
[1743124508117,0.05164376,137.26,137.24,0.04858682]
[1743124508519,0.05164376,137.26,137.24,13.34491267]
[1743124508817,0.05164376,137.26,137.25,7.288]
[1743124509318,0.05164376,137.26,137.24,20.63321267]
[1743124510223,0.05164376,137.26,137.24,7.33688682]
[1743124510524,0.05164376,137.26,137.25,7.288]
[1743124511723,25.88,137.32,137.29,7.2857]
[1743124512717,13.29632585,137.33,137.27,13.29632585]
[1743124512917,0.05124336,137.32,137.29,13.35076929]
[1743124513123,39.17632585,137.33,137.3,7.2848]
[1743124513426,0.05008033,137.32,137.3,7.2848]
[1743124515915,0.05008033,137.32,137.29,20.63192679]
[1743124516117,0.05008033,137.32,137.29,7.33560094]
[1743124517323,0.05008033,137.32,137.3,7.285]
[1743124517525,0.05008033,137.32,137.29,0.05000094]
[1743124517826,0.05008033,137.32,137.3,7.2853]
[1743124518224,0.05008033,137.32,137.29,13.34632679]
[1743124518422,0.05008033,137.32,137.31,7.2848]
[1743124518624,0.05008033,137.32,137.29,0.05000094]
[1743124519923,7.2851,137.31,137.29,0.05000094]
[1743124520728,7.33448033,137.32,137.29,0.05000094]
[1743124521729,7.2849,137.31,137.29,0.05000094]
[1743124525330,33.1653,137.3,137.29,0.05000094]
[1743124530132,25.88,137.3,137.25,7.2877]
[1743124530324,13.29632585,137.29,137.25,7.2877]
[1743124530924,20.58252585,137.29,137.25,7.2877]
[1743124531235,0.0474653,137.28,137.26,0.0525295]
[1743124532534,39.17632585,137.27,137.2,13.29632585]
[1743124532726,13.29632585,137.25,137.2,13.29632585]
[1743124532921,33.1688,137.24,137.2,20.58662585]
[1743124533632,33.1688,137.24,137.21,0.05084876]
[1743124533633,0.05579013,137.23,137.21,0.05084876]
[1743124533942,7.34479013,137.23,137.21,0.05084876]
[1743124534236,0.05579013,137.23,137.21,0.05084876]
[1743124536034,0.05579013,137.23,137.22,7.2896]
[1743124536636,0.05579013,137.23,137.21,7.34064876]
[1743124538725,7.34489013,137.23,137.21,0.05084876]
[1743124539340,0.05579013,137.23,137.21,7.34094876]
[1743124540443,7.34509013,137.23,137.21,0.05084876]
[1743124545842,0.05579013,137.23,137.21,0.05084876]
[1743124546343,0.05579013,137.23,137.22,7.2896]
[1743124546544,0.05579013,137.23,137.21,0.05084876]
[1743124547142,0.05579013,137.23,137.21,7.34064876]
[1743124550847,7.34489013,137.23,137.21,7.34064876]
[1743124551450,7.34489013,137.23,137.21,0.05084876]
[1743124552047,7.2896,137.22,137.21,0.05084876]
[1743124553642,20.64141598,137.23,137.21,0.05084876]
[1743124555743,7.2896,137.22,137.21,0.05084876]
[1743124557145,0.05579013,137.23,137.21,0.05084876]
[1743124558551,0.05579013,137.23,137.21,7.34064876]
[1743124558851,0.05579013,137.23,137.21,0.05084876]
[1743124559052,0.05579013,137.23,137.22,7.2896]
[1743124559247,0.05579013,137.23,137.21,0.05084876]
[1743124559644,0.05579013,137.23,137.22,7.2896]
[1743124559844,0.05579013,137.23,137.21,0.05084876]
[1743124560252,0.05579013,137.23,137.21,7.34064876]
[1743124560453,7.34479013,137.23,137.21,7.34064876]
[1743124561054,0.05579013,137.23,137.21,7.34064876]
[1743124562049,0.05579013,137.23,137.22,7.2896]
[1743124562949,25.0,137.25,137.24,7.2885]
[1743124563155,23.36095356,137.33,137.24,13.29632585]
[1743124563451,25.88,137.32,137.28,20.58232585]
[1743124563849,7.2849,137.31,137.28,20.58232585]
[1743124564047,7.33602285,137.31,137.29,0.054432]
[1743124564350,13.3474487,137.31,137.29,0.054432]
[1743124564654,7.2853,137.3,137.29,0.054432]
[1743124565249,20.6324487,137.31,137.29,0.054432]
[1743124565449,13.3474487,137.31,137.29,0.054432]
[1743124566547,13.3474487,137.31,137.29,7.340232]
[1743124566747,0.05112285,137.31,137.29,7.340232]
[1743124566944,0.05112285,137.31,137.29,0.054432]
[1743124567756,7.33622285,137.31,137.29,0.054432]
[1743124568159,13.3474487,137.31,137.29,0.054432]
[1743124568658,7.2853,137.3,137.29,0.054432]
[1743124569061,13.3474487,137.31,137.22,2.017]
[1743124569255,13.29632585,137.27,137.21,13.29632585]
[1743124569457,39.17632585,137.27,137.21,13.29632585]
[1743124569753,7.2877,137.26,137.23,7.289]
[1743124569958,39.17632585,137.27,137.23,7.289]
[1743124569959,39.17632585,137.27,137.23,13.29632585]
[1743124570257,0.05079344,137.26,137.24,0.05418666]
[1743124570857,0.05079344,137.26,137.24,7.34258666]
[1743124571454,0.05079344,137.26,137.24,0.05418666]
[1743124571753,0.05079344,137.26,137.25,13.29632585]
[1743124572161,0.05079344,137.26,137.25,20.58432585]
[1743124572661,0.05079344,137.26,137.25,7.288]
[1743124572857,0.05079344,137.26,137.24,7.34248666]
[1743124573064,0.05079344,137.26,137.24,0.05418666]
[1743124573360,7.33839344,137.26,137.24,0.05418666]
[1743124573861,0.05079344,137.26,137.24,7.34268666]
[1743124574465,7.33829344,137.26,137.24,7.34268666]
[1743124574962,7.33829344,137.26,137.24,0.05418666]
[1743124575158,7.288,137.25,137.24,0.05418666]
[1743124576160,7.33849344,137.26,137.24,0.05418666]
[1743124578058,0.05079344,137.26,137.24,0.05418666]
[1743124578763,0.05079344,137.26,137.24,7.34238666]
[1743124581865,0.05079344,137.26,137.25,7.288]
[1743124587775,7.2849,137.31,137.29,7.2858]
[1743124588166,7.2844,137.32,137.29,7.2858]
[1743124588868,7.2844,137.32,137.29,7.33808686]
[1743124589070,7.33530209,137.32,137.29,7.33808686]
[1743124590376,7.33530209,137.32,137.3,7.2852]
[1743124590874,0.05090209,137.32,137.31,7.2848]
[1743124593079,0.05090209,137.32,137.31,33.1448]
[1743124593378,7.2817,137.37,137.34,7.283]
[1743124593773,7.2817,137.37,137.33,13.29632585]
[1743124593973,7.2817,137.37,137.33,20.57972585]
[1743124594475,7.2817,137.37,137.34,7.2828]
[1743124594777,0.04880465,137.36,137.35,13.29632585]
[1743124595077,7.2809,137.39,137.35,20.57902585]
[1743124595278,0.04638571,137.37,137.35,20.57902585]
[1743124596577,0.04638571,137.37,137.36,7.2821]
[1743124598073,7.2797,137.41,137.38,7.2809]
[1743124598270,7.2797,137.41,137.38,20.57722585]
[1743124598479,7.279,137.42,137.39,7.2805]
[1743124598679,13.29632585,137.44,137.4,13.29632585]
[1743124599090,7.2781,137.44,137.4,39.15632585]
[1743124599287,0.04728293,137.43,137.41,0.04657307]
[1743124599793,0.04728293,137.43,137.41,7.32597307]
[1743124601281,0.04728293,137.43,137.41,0.04657307]
[1743124602492,7.32578293,137.43,137.41,0.04657307]
[1743124602691,0.04728293,137.43,137.41,0.04657307]
[1743124603084,7.2789,137.42,137.41,0.04657307]
[1743124603494,20.57522585,137.42,137.41,0.04657307]
[1743124604800,13.29632585,137.42,137.41,0.04657307]
[1743124608096,20.57522585,137.42,137.41,0.04657307]
[1743124612805,13.29632585,137.42,137.41,0.04657307]
[1743124614208,0.04728293,137.43,137.41,7.32577307]
[1743124614909,0.04728293,137.43,137.41,0.04657307]
[1743124615307,7.32568293,137.43,137.41,0.04657307]
[1743124616601,7.2789,137.42,137.41,0.04657307]
[1743124616797,0.04728293,137.43,137.41,0.04657307]
[1743124617197,0.04728293,137.43,137.42,20.57522585]
[1743124617403,0.04728293,137.43,137.42,13.29632585]
[1743124617602,0.04728293,137.43,137.41,25.88657307]
[1743124618709,0.04728293,137.43,137.41,33.16587307]
[1743124619311,0.04728293,137.43,137.41,7.32587307]
[1743124620315,7.32588293,137.43,137.41,0.04657307]
[1743124620611,0.04728293,137.43,137.41,0.04657307]
[1743124621406,0.04728293,137.43,137.41,7.32597307]
[1743124621809,0.04728293,137.43,137.41,0.04657307]
[1743124622012,0.04728293,137.43,137.42,7.2789]
[1743124622212,0.04728293,137.43,137.42,20.57522585]
[1743124623110,0.04728293,137.43,137.42,13.29632585]
[1743124624116,0.04728293,137.43,137.42,20.57522585]
[1743124624418,0.04728293,137.43,137.42,13.29632585]
[1743124625818,0.04728293,137.43,137.42,20.57522585]
[1743124626017,0.04728293,137.43,137.42,13.29632585]
[1743124626517,0.04728293,137.43,137.41,0.04657307]
[1743124626816,13.29632585,137.42,137.41,0.04657307]
[1743124627319,20.57522585,137.42,137.41,0.04657307]
[1743124628619,7.2811,137.38,137.35,20.57872585]
[1743124628819,13.29632585,137.38,137.33,13.29632585]
[1743124629021,13.29632585,137.38,137.34,25.84]
[1743124629215,7.2827,137.35,137.34,25.84]
[1743124629415,7.2827,137.35,137.32,20.58032585]
[1743124629921,7.32954436,137.35,137.32,20.63197132]
[1743124630225,0.04684436,137.35,137.33,7.2837]
[1743124631924,0.04684436,137.35,137.32,0.05164547]
[1743124633022,0.04684436,137.35,137.32,13.34797132]
[1743124633523,0.04684436,137.35,137.33,7.2834]
[1743124634025,0.04684436,137.35,137.34,7.2832]
[1743124635124,0.04684436,137.35,137.34,20.57952585]
[1743124637020,0.04684436,137.35,137.32,46.47207132]
[1743124641126,0.04684436,137.35,137.33,7.2837]
[1743124642428,0.04684436,137.35,137.32,46.47197132]
[1743124645530,0.04684436,137.35,137.32,25.89164547]
[1743124645827,0.04684436,137.35,137.32,0.05164547]
[1743124646329,7.2836,137.34,137.32,0.05164547]
[1743124650527,7.2837,137.33,137.32,0.05164547]
[1743124651631,0.04684436,137.35,137.32,0.05164547]
[1743124651835,0.04684436,137.35,137.32,13.34797132]
[1743124652526,0.04684436,137.35,137.33,7.2834]
[1743124654236,7.32954436,137.35,137.32,20.63197132]
[1743124654535,0.04684436,137.35,137.32,0.05164547]
[1743124654722,7.2837,137.33,137.32,0.05164547]
[1743124655126,0.04684436,137.35,137.32,0.05164547]
[1743124656132,7.2832,137.34,137.32,0.05164547]
[1743124656332,0.04684436,137.35,137.32,0.05164547]
[1743124657638,7.2837,137.33,137.32,0.05164547]
[1743124657836,25.84,137.33,137.26,13.29632585]
[1743124658032,13.29632585,137.31,137.23,262.02]
[1743124658236,13.29632585,137.31,137.24,13.29632585]
[1743124658431,7.2869,137.27,137.24,20.58452585]
[1743124658940,0.05019371,137.27,137.24,0.05414286]
[1743124659331,39.18651956,137.27,137.24,0.05414286]
[1743124659639,7.2878,137.26,137.24,0.05414286]
[1743124660031,39.18651956,137.27,137.24,0.05414286]
[1743124660244,25.89019371,137.27,137.24,0.05414286]
[1743124661840,33.17719371,137.27,137.24,0.05414286]
[1743124663538,25.89019371,137.27,137.25,7.288]
[1743124665843,25.89019371,137.27,137.24,7.34244286]
[1743124666943,25.89019371,137.27,137.25,7.2879]
[1743124667339,0.05019371,137.27,137.25,20.84917979]
[1743124667749,0.05019371,137.27,137.26,7.2874]
[1743124676354,0.05019371,137.27,137.24,0.05414286]